[Event "Live Chess"]
[Site "Chess.com"]
[Date "2010.12.10"]
[Round "-"]
[White "teribahendi"]
[Black "hipposcottimus"]
[Result "1-0"]
[CurrentPosition "1n1q2k1/p5Qp/2pbNnp1/4p3/4P3/8/PPPP1PPP/RNB1K2R b KQ -"]
[Timezone "UTC"]
[ECO "C23"]
[ECOUrl "https://www.chess.com/openings/Bishops-Opening-Khan-Gambit"]
[UTCDate "2010.12.10"]
[UTCTime "03:53:08"]
[WhiteElo "2030"]
[BlackElo "1668"]
[TimeControl "60"]
[Termination "teribahendi won by checkmate"]
[StartTime "03:53:08"]
[EndDate "2010.12.10"]
[EndTime "03:54:01"]
[Link "https://www.chess.com/game/live/75788729"]

1. e4 {[%clk 0:01:00]} 1... e5 {[%clk 0:01:00]} 2. Bc4 {[%clk 0:00:56.5]} 2... d5 {[%clk 0:00:59.4]} 3. Bxd5 {[%clk 0:00:55.4]} 3... Bd6 {[%clk 0:00:59.1]} 4. Bxf7+ {[%clk 0:00:54.8]} 4... Kxf7 {[%clk 0:00:58.9]} 5. Qh5+ {[%clk 0:00:54.3]} 5... g6 {[%clk 0:00:58.6]} 6. Qf3+ {[%clk 0:00:53.4]} 6... Nf6 {[%clk 0:00:58.4]} 7. Qb3+ {[%clk 0:00:53]} 7... Be6 {[%clk 0:00:57.9]} 8. Qxb7 {[%clk 0:00:52]} 8... Rf8 {[%clk 0:00:44]} 9. Qxa8 {[%clk 0:00:46.6]} 9... Kg7 {[%clk 0:00:43.7]} 10. Qb7 {[%clk 0:00:45.6]} 10... Kg8 {[%clk 0:00:39.7]} 11. Nf3 {[%clk 0:00:44.5]} 11... Rf7 {[%clk 0:00:39.3]} 12. Ng5 {[%clk 0:00:43.6]} 12... Rg7 {[%clk 0:00:36.4]} 13. Nxe6 {[%clk 0:00:42.1]} 13... c6 {[%clk 0:00:35]} 14. Qxg7# {[%clk 0:00:39.3]} 1-0

[Event "Live Chess"]
[Site "Chess.com"]
[Date "2010.12.10"]
[Round "-"]
[White "hipposcottimus"]
[Black "teribahendi"]
[Result "0-1"]
[CurrentPosition "r4rk1/1pp1ppbp/p2qb1p1/8/4N3/3P1N2/PP1BnPPP/R4RK1 w - -"]
[Timezone "UTC"]
[ECO "B01"]
[ECOUrl "https://www.chess.com/openings/Scandinavian-Defense"]
[UTCDate "2010.12.10"]
[UTCTime "03:51:26"]
[WhiteElo "1668"]
[BlackElo "2030"]
[TimeControl "60"]
[Termination "teribahendi won by resignation"]
[StartTime "03:51:26"]
[EndDate "2010.12.10"]
[EndTime "03:52:22"]
[Link "https://www.chess.com/game/live/75788397"]

1. e4 {[%clk 0:01:00]} 1... d5 {[%clk 0:01:00]} 2. Qh5 {[%clk 0:00:59.7]} 2... Nf6 {[%clk 0:00:59]} 3. Qe5 {[%clk 0:00:57.4]} 3... dxe4 {[%clk 0:00:57.4]} 4. d3 {[%clk 0:00:55.4]} 4... Nc6 {[%clk 0:00:56.6]} 5. Qb5 {[%clk 0:00:50.8]} 5... a6 {[%clk 0:00:54.8]} 6. Qc4 {[%clk 0:00:48.7]} 6... Be6 {[%clk 0:00:50.8]} 7. Qc3 {[%clk 0:00:46.2]} 7... exd3 {[%clk 0:00:46.6]} 8. cxd3 {[%clk 0:00:44.7]} 8... g6 {[%clk 0:00:45.5]} 9. Nf3 {[%clk 0:00:44.2]} 9... Bg7 {[%clk 0:00:45]} 10. Qd2 {[%clk 0:00:43.9]} 10... O-O {[%clk 0:00:44.6]} 11. Nc3 {[%clk 0:00:43.6]} 11... Nd4 {[%clk 0:00:43]} 12. Be2 {[%clk 0:00:43.3]} 12... Nxe2 {[%clk 0:00:41.8]} 13. Qxe2 {[%clk 0:00:42.3]} 13... Nd5 {[%clk 0:00:41.4]} 14. Bd2 {[%clk 0:00:38.4]} 14... Qd6 {[%clk 0:00:37.5]} 15. O-O {[%clk 0:00:38]} 15... Nf4 {[%clk 0:00:36.4]} 16. Ne4 {[%clk 0:00:37.7]} 16... Nxe2+ {[%clk 0:00:34.7]} 0-1

[Event "Live Chess"]
[Site "Chess.com"]
[Date "2010.12.10"]
[Round "-"]
[White "hipposcottimus"]
[Black "teribahendi"]
[Result "0-1"]
[CurrentPosition "4rrk1/7p/1np2pp1/p1Qb1p2/3P1P2/1P6/6qP/R1R3K1 w - -"]
[Timezone "UTC"]
[ECO "B02"]
[ECOUrl "https://www.chess.com/openings/Alekhines-Defense-Scandinavian-Variation-3.exd5"]
[UTCDate "2010.12.10"]
[UTCTime "03:48:12"]
[WhiteElo "1668"]
[BlackElo "2030"]
[TimeControl "60"]
[Termination "teribahendi won by checkmate"]
[StartTime "03:48:12"]
[EndDate "2010.12.10"]
[EndTime "03:49:40"]
[Link "https://www.chess.com/game/live/75787728"]

1. e4 {[%clk 0:01:00]} 1... d5 {[%clk 0:01:00]} 2. exd5 {[%clk 0:00:58.6]} 2... Nf6 {[%clk 0:00:59.8]} 3. Nc3 {[%clk 0:00:58.4]} 3... Nxd5 {[%clk 0:00:59.4]} 4. Ne4 {[%clk 0:00:57.1]} 4... f5 {[%clk 0:00:57]} 5. Qh5+ {[%clk 0:00:53.3]} 5... g6 {[%clk 0:00:55.2]} 6. Nf6+ {[%clk 0:00:50.3]} 6... exf6 {[%clk 0:00:54.2]} 7. Qe2+ {[%clk 0:00:50.1]} 7... Be7 {[%clk 0:00:53.2]} 8. Nf3 {[%clk 0:00:49.7]} 8... O-O {[%clk 0:00:52.3]} 9. d4 {[%clk 0:00:49.5]} 9... Nf4 {[%clk 0:00:51.7]} 10. Be3 {[%clk 0:00:48.7]} 10... Nd5 {[%clk 0:00:47.4]} 11. Qc4 {[%clk 0:00:45.6]} 11... Be6 {[%clk 0:00:43.4]} 12. Qb3 {[%clk 0:00:43.2]} 12... Qd7 {[%clk 0:00:42.4]} 13. Bc4 {[%clk 0:00:42.8]} 13... c6 {[%clk 0:00:39.8]} 14. O-O {[%clk 0:00:42.5]} 14... b5 {[%clk 0:00:38.3]} 15. Bxd5 {[%clk 0:00:40.8]} 15... Bxd5 {[%clk 0:00:38]} 16. Qd3 {[%clk 0:00:39.2]} 16... Bxf3 {[%clk 0:00:37.4]} 17. Bf4 {[%clk 0:00:38.4]} 17... Bd5 {[%clk 0:00:34.8]} 18. f3 {[%clk 0:00:37.8]} 18... Bd6 {[%clk 0:00:32.3]} 19. Bxd6 {[%clk 0:00:36.4]} 19... Qxd6 {[%clk 0:00:32]} 20. f4 {[%clk 0:00:36.1]} 20... Nd7 {[%clk 0:00:30.3]} 21. b3 {[%clk 0:00:35.2]} 21... Nb6 {[%clk 0:00:29.2]} 22. c4 {[%clk 0:00:34.9]} 22... bxc4 {[%clk 0:00:27.5]} 23. Qc3 {[%clk 0:00:33.5]} 23... cxb3 {[%clk 0:00:25.4]} 24. axb3 {[%clk 0:00:33.1]} 24... a5 {[%clk 0:00:23.5]} 25. Rfe1 {[%clk 0:00:32.6]} 25... Rae8 {[%clk 0:00:21.7]} 26. Red1 {[%clk 0:00:30.6]} 26... Qe6 {[%clk 0:00:19.2]} 27. Rdc1 {[%clk 0:00:30.2]} 27... Qe4 {[%clk 0:00:18.7]} 28. Qc5 {[%clk 0:00:28.9]} 28... Qxg2# {[%clk 0:00:17.5]} 0-1

[Event "Live Chess"]
[Site "Chess.com"]
[Date "2010.12.10"]
[Round "-"]
[White "teribahendi"]
[Black "hipposcottimus"]
[Result "0-1"]
[CurrentPosition "r3q3/ppp3kp/3b1np1/3P4/3P2b1/2N2p2/PP1P2PP/R1B1K1NR w KQ -"]
[Timezone "UTC"]
[ECO "C23"]
[ECOUrl "https://www.chess.com/openings/Bishops-Opening-2...Nc6"]
[UTCDate "2010.12.10"]
[UTCTime "03:47:25"]
[WhiteElo "2030"]
[BlackElo "1668"]
[TimeControl "60"]
[Termination "hipposcottimus won by resignation"]
[StartTime "03:47:25"]
[EndDate "2010.12.10"]
[EndTime "03:47:57"]
[Link "https://www.chess.com/game/live/75787564"]

1. e4 {[%clk 0:01:00]} 1... e5 {[%clk 0:01:00]} 2. Bc4 {[%clk 0:00:59.6]} 2... Nc6 {[%clk 0:00:59.8]} 3. Bxf7+ {[%clk 0:00:59.1]} 3... Kxf7 {[%clk 0:00:58.4]} 4. Qh5+ {[%clk 0:00:58.8]} 4... g6 {[%clk 0:00:57.8]} 5. Qf3+ {[%clk 0:00:58.4]} 5... Nf6 {[%clk 0:00:57.6]} 6. Qb3+ {[%clk 0:00:58]} 6... d5 {[%clk 0:00:54.8]} 7. exd5 {[%clk 0:00:57.7]} 7... Nd4 {[%clk 0:00:53.2]} 8. Qd3 {[%clk 0:00:55.7]} 8... Bd6 {[%clk 0:00:52.9]} 9. c3 {[%clk 0:00:54.8]} 9... Kg7 {[%clk 0:00:52.6]} 10. cxd4 {[%clk 0:00:53.6]} 10... e4 {[%clk 0:00:52.3]} 11. Qe3 {[%clk 0:00:51.9]} 11... Re8 {[%clk 0:00:51.9]} 12. Nc3 {[%clk 0:00:49.9]} 12... Bg4 {[%clk 0:00:51.5]} 13. f3 {[%clk 0:00:48]} 13... exf3 {[%clk 0:00:50.4]} 14. Qxe8 {[%clk 0:00:45.2]} 14... Qxe8+ {[%clk 0:00:50.2]} 0-1

[Event "Live Chess"]
[Site "Chess.com"]
[Date "2010.12.10"]
[Round "-"]
[White "Takahiro"]
[Black "hipposcottimus"]
[Result "1-0"]
[CurrentPosition "r4rkQ/ppq2p1p/1n6/3P1p2/2P3P1/1P6/PB4N1/2KR4 b - -"]
[Timezone "UTC"]
[ECO "D00"]
[ECOUrl "https://www.chess.com/openings/Queens-Pawn-Opening-1...d5-2.e3"]
[UTCDate "2010.12.10"]
[UTCTime "03:45:28"]
[WhiteElo "1778"]
[BlackElo "1668"]
[TimeControl "60"]
[Termination "Takahiro won by checkmate"]
[StartTime "03:45:28"]
[EndDate "2010.12.10"]
[EndTime "03:46:50"]
[Link "https://www.chess.com/game/live/75787171"]

1. d4 {[%clk 0:01:00]} 1... d5 {[%clk 0:01:00]} 2. e3 {[%clk 0:00:59.5]} 2... c6 {[%clk 0:00:59.7]} 3. Bd3 {[%clk 0:00:59.1]} 3... Nd7 {[%clk 0:00:59.4]} 4. Ne2 {[%clk 0:00:58.7]} 4... e6 {[%clk 0:00:59.1]} 5. c3 {[%clk 0:00:58.1]} 5... Ngf6 {[%clk 0:00:58.9]} 6. Nd2 {[%clk 0:00:57.5]} 6... e5 {[%clk 0:00:58.7]} 7. b3 {[%clk 0:00:56.9]} 7... e4 {[%clk 0:00:57.7]} 8. Bc2 {[%clk 0:00:56.3]} 8... Be7 {[%clk 0:00:56.9]} 9. Bb2 {[%clk 0:00:55.8]} 9... O-O {[%clk 0:00:56.6]} 10. f3 {[%clk 0:00:54.6]} 10... c5 {[%clk 0:00:56.3]} 11. fxe4 {[%clk 0:00:53.3]} 11... cxd4 {[%clk 0:00:56]} 12. exd4 {[%clk 0:00:51.7]} 12... dxe4 {[%clk 0:00:52]} 13. Nxe4 {[%clk 0:00:50.4]} 13... Nb6 {[%clk 0:00:51.5]} 14. Qd2 {[%clk 0:00:47.5]} 14... Bf5 {[%clk 0:00:49.4]} 15. Nxf6+ {[%clk 0:00:45.7]} 15... Kh8 {[%clk 0:00:47.2]} 16. Bxf5 {[%clk 0:00:42.9]} 16... Bxf6 {[%clk 0:00:46.9]} 17. O-O-O {[%clk 0:00:40.7]} 17... Bh4 {[%clk 0:00:46.6]} 18. g4 {[%clk 0:00:39.5]} 18... Bg5 {[%clk 0:00:46.3]} 19. Nf4 {[%clk 0:00:37]} 19... g6 {[%clk 0:00:45.6]} 20. h4 {[%clk 0:00:34.5]} 20... Bxh4 {[%clk 0:00:43.2]} 21. Rxh4 {[%clk 0:00:30.1]} 21... Qxh4 {[%clk 0:00:41.3]} 22. Ng2 {[%clk 0:00:28.3]} 22... Qe7 {[%clk 0:00:34.9]} 23. c4 {[%clk 0:00:25.2]} 23... Qc7 {[%clk 0:00:34.4]} 24. d5+ {[%clk 0:00:24.3]} 24... Kg8 {[%clk 0:00:32.8]} 25. Qd4 {[%clk 0:00:23.3]} 25... gxf5 {[%clk 0:00:31.4]} 26. Qh8# {[%clk 0:00:20.1]} 1-0

[Event "Live Chess"]
[Site "Chess.com"]
[Date "2010.12.10"]
[Round "-"]
[White "harshal"]
[Black "hipposcottimus"]
[Result "1-0"]
[CurrentPosition "r1b2r1k/pp3p1Q/3p1Np1/q1p5/3nP2P/1P1P4/PBP5/1K1R1BR1 b - -"]
[Timezone "UTC"]
[ECO "C20"]
[ECOUrl "https://www.chess.com/openings/Kings-Pawn-Opening-Leonardis-Variation"]
[UTCDate "2010.12.10"]
[UTCTime "03:42:31"]
[WhiteElo "1653"]
[BlackElo "1674"]
[TimeControl "60"]
[Termination "harshal won by checkmate"]
[StartTime "03:42:31"]
[EndDate "2010.12.10"]
[EndTime "03:43:55"]
[Link "https://www.chess.com/game/live/75786561"]

1. e4 {[%clk 0:01:00]} 1... e5 {[%clk 0:01:00]} 2. d3 {[%clk 0:00:59.5]} 2... Nc6 {[%clk 0:00:59.7]} 3. f4 {[%clk 0:00:59]} 3... Nf6 {[%clk 0:00:59.5]} 4. fxe5 {[%clk 0:00:57.7]} 4... Nxe5 {[%clk 0:00:58.6]} 5. Nf3 {[%clk 0:00:56.8]} 5... Ng6 {[%clk 0:00:58.1]} 6. Nc3 {[%clk 0:00:55.9]} 6... d6 {[%clk 0:00:57.9]} 7. b3 {[%clk 0:00:54.4]} 7... Be7 {[%clk 0:00:57.7]} 8. Bb2 {[%clk 0:00:53.3]} 8... c5 {[%clk 0:00:57.4]} 9. h3 {[%clk 0:00:52.5]} 9... O-O {[%clk 0:00:57]} 10. g4 {[%clk 0:00:51.6]} 10... Nf4 {[%clk 0:00:56.5]} 11. Qd2 {[%clk 0:00:46.9]} 11... Ne6 {[%clk 0:00:56.1]} 12. g5 {[%clk 0:00:45.8]} 12... Nh5 {[%clk 0:00:51.3]} 13. O-O-O {[%clk 0:00:44.8]} 13... Nxg5 {[%clk 0:00:47.3]} 14. Qe2 {[%clk 0:00:37]} 14... Nxf3 {[%clk 0:00:46.5]} 15. Qxf3 {[%clk 0:00:35.3]} 15... Bg5+ {[%clk 0:00:46.3]} 16. Kb1 {[%clk 0:00:34.5]} 16... Nf4 {[%clk 0:00:46]} 17. Rg1 {[%clk 0:00:31.7]} 17... Bh6 {[%clk 0:00:45.8]} 18. h4 {[%clk 0:00:30.5]} 18... Ne6 {[%clk 0:00:39.1]} 19. Nd5 {[%clk 0:00:26]} 19... Qa5 {[%clk 0:00:38.2]} 20. Qh5 {[%clk 0:00:22.1]} 20... Nd4 {[%clk 0:00:36.6]} 21. Qxh6 {[%clk 0:00:19.1]} 21... g6 {[%clk 0:00:36.3]} 22. Nf6+ {[%clk 0:00:14.8]} 22... Kh8 {[%clk 0:00:34.4]} 23. Qxh7# {[%clk 0:00:13.8]} 1-0

[Event "Live Chess"]
[Site "Chess.com"]
[Date "2010.12.10"]
[Round "-"]
[White "hipposcottimus"]
[Black "TerrenceFord"]
[Result "0-1"]
[CurrentPosition "r3r1k1/p4pbp/4p1p1/2B5/2Pp4/3Q1bN1/P4PqP/R4RK1 w - -"]
[Timezone "UTC"]
[ECO "B51"]
[ECOUrl "https://www.chess.com/openings/Sicilian-Defense-Canal-Attack-3...Nc6"]
[UTCDate "2010.12.10"]
[UTCTime "03:20:44"]
[WhiteElo "1683"]
[BlackElo "1689"]
[TimeControl "60"]
[Termination "TerrenceFord won by checkmate"]
[StartTime "03:20:44"]
[EndDate "2010.12.10"]
[EndTime "03:22:02"]
[Link "https://www.chess.com/game/live/75781960"]

1. e4 {[%clk 0:01:00]} 1... c5 {[%clk 0:01:00]} 2. Nf3 {[%clk 0:00:59.7]} 2... Nc6 {[%clk 0:00:59.6]} 3. Bb5 {[%clk 0:00:59.1]} 3... d6 {[%clk 0:00:58.9]} 4. Bxc6+ {[%clk 0:00:58.5]} 4... bxc6 {[%clk 0:00:57.3]} 5. c4 {[%clk 0:00:58.3]} 5... g6 {[%clk 0:00:56.7]} 6. Nc3 {[%clk 0:00:57.8]} 6... Bg7 {[%clk 0:00:56]} 7. d3 {[%clk 0:00:57.4]} 7... e6 {[%clk 0:00:55.6]} 8. Bd2 {[%clk 0:00:56.3]} 8... Ne7 {[%clk 0:00:55.3]} 9. O-O {[%clk 0:00:55.2]} 9... O-O {[%clk 0:00:54.3]} 10. d4 {[%clk 0:00:54.6]} 10... cxd4 {[%clk 0:00:52.6]} 11. Ne2 {[%clk 0:00:53.4]} 11... c5 {[%clk 0:00:51.3]} 12. b4 {[%clk 0:00:51.8]} 12... Bb7 {[%clk 0:00:49.5]} 13. bxc5 {[%clk 0:00:50.3]} 13... dxc5 {[%clk 0:00:48.7]} 14. e5 {[%clk 0:00:48.4]} 14... Nc6 {[%clk 0:00:44.7]} 15. Ng3 {[%clk 0:00:44.5]} 15... Nxe5 {[%clk 0:00:43.4]} 16. Bf4 {[%clk 0:00:44.3]} 16... Nxf3+ {[%clk 0:00:41.4]} 17. gxf3 {[%clk 0:00:44.1]} 17... Qh4 {[%clk 0:00:36.2]} 18. Bd6 {[%clk 0:00:38.9]} 18... Rfd8 {[%clk 0:00:33.5]} 19. Bxc5 {[%clk 0:00:37.6]} 19... Re8 {[%clk 0:00:31.2]} 20. Ne2 {[%clk 0:00:33.5]} 20... Bxf3 {[%clk 0:00:28.9]} 21. Qd3 {[%clk 0:00:29.6]} 21... Qh3 {[%clk 0:00:27.5]} 22. Ng3 {[%clk 0:00:27.1]} 22... Qg2# {[%clk 0:00:26.1]} 0-1

[Event "Live Chess"]
[Site "Chess.com"]
[Date "2010.12.10"]
[Round "-"]
[White "Strangelove13"]
[Black "hipposcottimus"]
[Result "0-1"]
[CurrentPosition "rnb3k1/pp1prppp/8/1p6/7q/2P4P/3K1PP1/7R w - -"]
[Timezone "UTC"]
[ECO "C20"]
[ECOUrl "https://www.chess.com/openings/Kings-Pawn-Opening-Wayward-Queen-Kiddie-Countergambit"]
[UTCDate "2010.12.10"]
[UTCTime "03:18:27"]
[WhiteElo "1330"]
[BlackElo "1691"]
[TimeControl "60"]
[Termination "hipposcottimus won on time"]
[StartTime "03:18:27"]
[EndDate "2010.12.10"]
[EndTime "03:20:15"]
[Link "https://www.chess.com/game/live/75781445"]

1. e4 {[%clk 0:01:00]} 1... e5 {[%clk 0:01:00]} 2. Qh5 {[%clk 0:00:58.5]} 2... Nf6 {[%clk 0:00:57.3]} 3. Qxe5+ {[%clk 0:00:57]} 3... Be7 {[%clk 0:00:57]} 4. Qxe7+ {[%clk 0:00:54.8]} 4... Qxe7 {[%clk 0:00:54.6]} 5. Bd3 {[%clk 0:00:53.3]} 5... Nxe4 {[%clk 0:00:53.6]} 6. Nc3 {[%clk 0:00:50.2]} 6... Nxc3+ {[%clk 0:00:49.3]} 7. Kf1 {[%clk 0:00:48.3]} 7... Ne4 {[%clk 0:00:42.4]} 8. Bb5 {[%clk 0:00:45.9]} 8... c6 {[%clk 0:00:35.6]} 9. Rb1 {[%clk 0:00:39.7]} 9... cxb5 {[%clk 0:00:33.8]} 10. c3 {[%clk 0:00:37.5]} 10... Nxd2+ {[%clk 0:00:33.4]} 11. Bxd2 {[%clk 0:00:33.5]} 11... O-O {[%clk 0:00:33.1]} 12. Bg5 {[%clk 0:00:31.2]} 12... Qe4 {[%clk 0:00:30.4]} 13. Be7 {[%clk 0:00:25.2]} 13... Qxb1+ {[%clk 0:00:26.9]} 14. Ke2 {[%clk 0:00:22.2]} 14... Re8 {[%clk 0:00:26.6]} 15. h3 {[%clk 0:00:17]} 15... Rxe7+ {[%clk 0:00:24.9]} 16. Kd2 {[%clk 0:00:12.9]} 16... Qxb2+ {[%clk 0:00:24.5]} 17. Kd3 {[%clk 0:00:11.1]} 17... Qxa2 {[%clk 0:00:24.1]} 18. Nf3 {[%clk 0:00:08.2]} 18... Qc4+ {[%clk 0:00:23.7]} 19. Kd2 {[%clk 0:00:05.8]} 19... Qe4 {[%clk 0:00:23.3]} 20. Nh4 {[%clk 0:00:01.7]} 20... Qxh4 {[%clk 0:00:21.1]} 0-1

[Event "Live Chess"]
[Site "Chess.com"]
[Date "2010.12.10"]
[Round "-"]
[White "hipposcottimus"]
[Black "Strangelove13"]
[Result "1-0"]
[CurrentPosition "rnQ5/ppp2Npp/1k3p2/1B2p3/P3P3/2Nn2K1/1P4PP/3R3R b - -"]
[Timezone "UTC"]
[ECO "C40"]
[ECOUrl "https://www.chess.com/openings/Kings-Pawn-Opening-Kings-Knight-Busch-Gass-Gambit"]
[UTCDate "2010.12.10"]
[UTCTime "03:16:18"]
[WhiteElo "1691"]
[BlackElo "1330"]
[TimeControl "60"]
[Termination "hipposcottimus won on time"]
[StartTime "03:16:18"]
[EndDate "2010.12.10"]
[EndTime "03:18:10"]
[Link "https://www.chess.com/game/live/75780971"]

1. e4 {[%clk 0:01:00]} 1... e5 {[%clk 0:01:00]} 2. Nf3 {[%clk 0:00:59.3]} 2... Bc5 {[%clk 0:00:54.7]} 3. Bc4 {[%clk 0:00:57.7]} 3... Bxf2+ {[%clk 0:00:52.5]} 4. Kxf2 {[%clk 0:00:56.1]} 4... Qf6 {[%clk 0:00:50.6]} 5. d4 {[%clk 0:00:50.3]} 5... d6 {[%clk 0:00:47.7]} 6. Bg5 {[%clk 0:00:49.8]} 6... Qxg5 {[%clk 0:00:45.2]} 7. Nxg5 {[%clk 0:00:48.4]} 7... f6 {[%clk 0:00:43.7]} 8. Nf7 {[%clk 0:00:45.6]} 8... Kd7 {[%clk 0:00:43.2]} 9. Nxh8 {[%clk 0:00:44.5]} 9... Kc6 {[%clk 0:00:40.9]} 10. dxe5 {[%clk 0:00:44.2]} 10... dxe5 {[%clk 0:00:38.8]} 11. Qd5+ {[%clk 0:00:42.3]} 11... Kb6 {[%clk 0:00:36.8]} 12. a4 {[%clk 0:00:41.9]} 12... Nh6 {[%clk 0:00:23.9]} 13. Nc3 {[%clk 0:00:37.3]} 13... Bg4 {[%clk 0:00:19.9]} 14. Qd8 {[%clk 0:00:33.4]} 14... Bc8 {[%clk 0:00:11.8]} 15. Qxc8 {[%clk 0:00:31.5]} 15... Ng4+ {[%clk 0:00:08.3]} 16. Kg3 {[%clk 0:00:29.3]} 16... Ne3 {[%clk 0:00:06.5]} 17. Bb5 {[%clk 0:00:26.4]} 17... Nxc2 {[%clk 0:00:04.5]} 18. Rac1 {[%clk 0:00:25.6]} 18... Nb4 {[%clk 0:00:02.9]} 19. Nf7 {[%clk 0:00:20.4]} 19... Nd3 {[%clk 0:00:00.3]} 20. Rcd1 {[%clk 0:00:17.5]} 1-0

[Event "Live Chess"]
[Site "Chess.com"]
[Date "2010.12.10"]
[Round "-"]
[White "Strangelove13"]
[Black "hipposcottimus"]
[Result "0-1"]
[CurrentPosition "5r2/pppk4/3p1q2/4p2p/2B1P3/3PP1P1/PPnBK2P/1R6 w - -"]
[Timezone "UTC"]
[ECO "C47"]
[ECOUrl "https://www.chess.com/openings/Four-Knights-Game-Italian-Variation"]
[UTCDate "2010.12.10"]
[UTCTime "03:14:04"]
[WhiteElo "1330"]
[BlackElo "1691"]
[TimeControl "60"]
[Termination "hipposcottimus won on time"]
[StartTime "03:14:04"]
[EndDate "2010.12.10"]
[EndTime "03:16:00"]
[Link "https://www.chess.com/game/live/75780505"]

1. e4 {[%clk 0:01:00]} 1... e5 {[%clk 0:01:00]} 2. Nf3 {[%clk 0:00:58.9]} 2... Nc6 {[%clk 0:00:59.7]} 3. Nc3 {[%clk 0:00:58.3]} 3... Nf6 {[%clk 0:00:59.4]} 4. Bc4 {[%clk 0:00:57.5]} 4... Bb4 {[%clk 0:00:59.1]} 5. Bxf7+ {[%clk 0:00:56.1]} 5... Ke7 {[%clk 0:00:56.2]} 6. Ng5 {[%clk 0:00:55.7]} 6... h6 {[%clk 0:00:55.1]} 7. Qf3 {[%clk 0:00:50.4]} 7... h5 {[%clk 0:00:52.4]} 8. Bc4 {[%clk 0:00:47.1]} 8... Nd4 {[%clk 0:00:48]} 9. Qxf6+ {[%clk 0:00:45.2]} 9... gxf6 {[%clk 0:00:46.2]} 10. Nf7 {[%clk 0:00:40.9]} 10... Qg8 {[%clk 0:00:42]} 11. Nxh8 {[%clk 0:00:38.8]} 11... Qxh8 {[%clk 0:00:41.5]} 12. O-O {[%clk 0:00:36.9]} 12... Nxc2 {[%clk 0:00:40.6]} 13. Rb1 {[%clk 0:00:34.6]} 13... Qg8 {[%clk 0:00:37.7]} 14. Nd5+ {[%clk 0:00:32]} 14... Kd8 {[%clk 0:00:34.1]} 15. Nxf6 {[%clk 0:00:30.7]} 15... Qg6 {[%clk 0:00:32.2]} 16. Nd5 {[%clk 0:00:27]} 16... Bc5 {[%clk 0:00:27.2]} 17. d3 {[%clk 0:00:25]} 17... d6 {[%clk 0:00:26.7]} 18. Ne3 {[%clk 0:00:21.2]} 18... Bh3 {[%clk 0:00:25.8]} 19. g3 {[%clk 0:00:11.9]} 19... Bxe3 {[%clk 0:00:21.5]} 20. fxe3 {[%clk 0:00:07]} 20... Bxf1 {[%clk 0:00:19.4]} 21. Kxf1 {[%clk 0:00:04.5]} 21... Kd7 {[%clk 0:00:17.3]} 22. Bd2 {[%clk 0:00:02.5]} 22... Rf8+ {[%clk 0:00:15.7]} 23. Ke2 {[%clk 0:00:01.3]} 23... Qf6 {[%clk 0:00:14.9]} 0-1

[Event "Live Chess"]
[Site "Chess.com"]
[Date "2010.12.10"]
[Round "-"]
[White "unknownto"]
[Black "hipposcottimus"]
[Result "0-1"]
[CurrentPosition "5r1k/6pp/p1n5/8/2N5/2PQ2Pb/4P1qP/3R3K w - -"]
[Timezone "UTC"]
[ECO "A00"]
[ECOUrl "https://www.chess.com/openings/Kings-Fianchetto-Opening-1...e5-2.Bg2-d5"]
[UTCDate "2010.12.10"]
[UTCTime "03:12:14"]
[WhiteElo "1647"]
[BlackElo "1691"]
[TimeControl "60"]
[Termination "hipposcottimus won by checkmate"]
[StartTime "03:12:14"]
[EndDate "2010.12.10"]
[EndTime "03:13:42"]
[Link "https://www.chess.com/game/live/75780149"]

1. g3 {[%clk 0:01:00]} 1... e5 {[%clk 0:01:00]} 2. Bg2 {[%clk 0:00:59.7]} 2... d5 {[%clk 0:00:59.8]} 3. b3 {[%clk 0:00:59.3]} 3... e4 {[%clk 0:00:59.5]} 4. Bb2 {[%clk 0:00:59.1]} 4... f5 {[%clk 0:00:58.9]} 5. d3 {[%clk 0:00:58.7]} 5... Nf6 {[%clk 0:00:56.6]} 6. dxe4 {[%clk 0:00:57.7]} 6... fxe4 {[%clk 0:00:53.9]} 7. Bxf6 {[%clk 0:00:56.8]} 7... Qxf6 {[%clk 0:00:53.5]} 8. Qxd5 {[%clk 0:00:55.7]} 8... Qxa1 {[%clk 0:00:51.9]} 9. Qxe4+ {[%clk 0:00:53.6]} 9... Be7 {[%clk 0:00:49.9]} 10. c3 {[%clk 0:00:52.2]} 10... O-O {[%clk 0:00:45.1]} 11. Nf3 {[%clk 0:00:51]} 11... Qxa2 {[%clk 0:00:44.1]} 12. O-O {[%clk 0:00:49.8]} 12... Qxb3 {[%clk 0:00:43.5]} 13. Qe3 {[%clk 0:00:44.9]} 13... Qf7 {[%clk 0:00:42.4]} 14. Ne5 {[%clk 0:00:42.7]} 14... Qf6 {[%clk 0:00:41]} 15. Nd3 {[%clk 0:00:41.1]} 15... b6 {[%clk 0:00:38.1]} 16. Bxa8 {[%clk 0:00:38.5]} 16... Bc5 {[%clk 0:00:37.7]} 17. Nxc5 {[%clk 0:00:35.4]} 17... bxc5 {[%clk 0:00:37.1]} 18. Qxc5 {[%clk 0:00:33.2]} 18... c6 {[%clk 0:00:36.8]} 19. Bxc6 {[%clk 0:00:30.2]} 19... Nxc6 {[%clk 0:00:35.4]} 20. Qc4+ {[%clk 0:00:29.1]} 20... Kh8 {[%clk 0:00:33.9]} 21. Na3 {[%clk 0:00:26.9]} 21... Ne5 {[%clk 0:00:33.2]} 22. Qd4 {[%clk 0:00:25.2]} 22... a6 {[%clk 0:00:30.5]} 23. Nc4 {[%clk 0:00:23.9]} 23... Nc6 {[%clk 0:00:30]} 24. Qd3 {[%clk 0:00:21.6]} 24... Bh3 {[%clk 0:00:29.3]} 25. Rd1 {[%clk 0:00:19.8]} 25... Qxf2+ {[%clk 0:00:28.4]} 26. Kh1 {[%clk 0:00:17.7]} 26... Qg2# {[%clk 0:00:28.1]} 0-1